[Event "Eurasia Open Cup 2019"]
[Site "Ekaterinburg"]
[Date "2019.08.06"]
[Round "6.27"]
[White "Postnikov, Daniil"]
[Black "Yangutov, Aleksey"]
[Result "1-0"]
[ECO "B33"]
[WhiteElo "2354"]
[BlackElo "2157"]
[Annotator "NA"]
[PlyCount "58"]
[EventDate "2019.07.31"]
[EventType "swiss"]
[EventCountry "RUS"]
[SourceTitle "playchess.com"]
[Source "ChessBase"]
[SourceQuality "1"]
[TimeControl "5400+30"]

1. e4 {[%emt 0:00:00]} c5 {[%emt 0:07:39]} 2. Nf3 {[%emt 0:00:00]} Nc6 {[%emt 0:00:06]} 3. d4 {[%emt 0:00:00]} cxd4 {[%emt 0:00:06]} 4. Nxd4 {[%emt 0:00:00]} Nf6 {[%emt 0:00:08]} 5. Nc3 {[%emt 0:00:00]} e5 {[%emt 0:00:07]} 6. Ndb5 {[%emt 0:00:00]} d6 {[%emt 0:00:07]} 7. Bg5 {[%emt 0:00:13]} a6 {[%emt 0:00:10]} 8. Na3 {[%emt 0:00:03]} b5 {[%emt 0:00:38]} 9. Nd5 {[%emt 0:00:24]} Be7 {[%emt 0:00:13]} 10. Bxf6 {[%emt 0:00:08]} Bxf6 {[%emt 0:00:00]} 11. c4 {[%emt 0:00:34]} b4 {[%emt 0:00:00]} 12. Nc2 {[%emt 0:00:07]} O-O {[%emt 0:00:30]} 13. g3 {[%emt 0:00:51]} Bg5 {[%emt 0:03:14]} 14. Bg2 {[%emt 0:00:10]} Qa5 {[%emt 0:01:02]} 15. O-O {[%emt 0:00:12]} Qc5 {[%emt 0:00:23]} 16. b3 {[%emt 0:00:15]} a5 {[%emt 0:01:51]} 17. Qd3 {[%emt 0:10:09]} Be6 {[%emt 0:02:24]} 18. Rad1 {[%emt 0:07:15]} Ra7 {[%emt 0:02:17]} 19. Kh1 {[%emt 0:02:48]} a4 {[%emt 0:06:23]} 20. f4 {[%emt 0:06:39]} Bd8 {[%emt 0:10:17]} 21. Nde3 {[%emt 0:03:07]} axb3 {[%emt 0:14:34]} 22. axb3 {[%emt 0:00:38]} Nd4 {[%emt 0:06:33]} 23. Nxd4 {[%emt 0:04:02]} exd4 {[%emt 0:00:23]} 24. Nc2 {[%emt 0:00:41]} Ra2 {[%emt 0:10:29]} 25. Nxd4 {[%emt 0:03:43]} Bg4 {[%emt 0:01:31]} 26. Rd2 {[%emt 0:02:11]} Rxd2 {[%emt 0:05:17]} 27. Qxd2 {[%emt 0:01:15]} Bf6 {[%emt 0:02:38]} 28. Nb5 {[%emt 0:01:48]} Rd8 {[%emt 0:01:01]} 29. f5 {[%emt 0:02:01]} Qc8 {[%emt 0:09:48]} 1-0

[Event "Eurasia Open Cup 2019"]
[Site "Ekaterinburg"]
[Date "2019.08.06"]
[Round "6.28"]
[White "Dilmukhametov, Artur"]
[Black "Nosacheva, Mariya"]
[Result "1-0"]
[ECO "D01"]
[WhiteElo "2346"]
[BlackElo "2150"]
[Annotator "NA"]
[PlyCount "69"]
[EventDate "2019.07.31"]
[EventType "swiss"]
[EventCountry "RUS"]
[SourceTitle "playchess.com"]
[Source "ChessBase"]
[SourceQuality "1"]
[TimeControl "5400+30"]

1. d4 {[%emt 0:07:09]} Nf6 {[%emt 0:00:00]} 2. Nc3 {[%emt 0:00:40]} d5 {[%emt 0:00:00]} 3. Nf3 {[%emt 0:00:08]} c5 {[%emt 0:01:43]} 4. Bg5 {[%emt 0:10:08]} Ne4 {[%emt 0:04:21]} 5. e3 {[%emt 0:19:04]} Qa5 {[%emt 0:04:30]} 6. Bb5+ {[%emt 0:18:33]} Nc6 {[%emt 0:07:16]} 7. O-O {[%emt 0:00:38]} Bg4 {[%emt 0:02:40]} 8. Bxc6+ {[%emt 0:02:48]} bxc6 {[%emt 0:01:06]} 9. Nxe4 {[%emt 0:00:05]} dxe4 {[%emt 0:00:28]} 10. Qd2 {[%emt 0:00:13]} Qxd2 {[%emt 0:05:57]} 11. Nxd2 {[%emt 0:00:24]} O-O-O {[%emt 0:00:42]} 12. Nb3 {[%emt 0:02:03]} f6 {[%emt 0:25:25]} 13. Bf4 {[%emt 0:00:29]} g5 {[%emt 0:08:59]} 14. Bg3 {[%emt 0:01:00]} cxd4 {[%emt 0:00:07]} 15. exd4 {[%emt 0:00:14]} Bh5 {[%emt 0:05:39]} 16. Rae1 {[%emt 0:08:11]} e5 {[%emt 0:00:34]} 17. dxe5 {[%emt 0:06:04]} f5 {[%emt 0:00:04]} 18. f4 {[%emt 0:00:04]} exf3 {[%emt 0:07:39]} 19. gxf3 {[%emt 0:00:03]} f4 {[%emt 0:00:05]} 20. Bf2 {[%emt 0:00:04]} Bxf3 {[%emt 0:00:08]} 21. e6 {[%emt 0:00:38]} Re8 {[%emt 0:01:33]} 22. Bd4 {[%emt 0:01:52]} Bd5 {[%emt 0:00:19]} 23. Bxh8 {[%emt 0:00:43]} Bxb3 {[%emt 0:00:38]} 24. axb3 {[%emt 0:00:05]} Bc5+ {[%emt 0:00:00]} 25. Kg2 {[%emt 0:00:19]} Rxh8 {[%emt 0:00:00]} 26. Re5 {[%emt 0:01:56]} Be7 {[%emt 0:00:54]} 27. Ra1 {[%emt 0:00:47]} Kb7 {[%emt 0:03:20]} 28. Rd1 {[%emt 0:00:15]} Kb6 {[%emt 0:01:07]} 29. Rd7 {[%emt 0:00:43]} Re8 {[%emt 0:00:07]} 30. Rf5 {[%emt 0:00:50]} Bc5 {[%emt 0:00:23]} 31. e7 {[%emt 0:01:02]} h5 {[%emt 0:02:27]} 32. Rxg5 {[%emt 0:01:52]} Bxe7 {[%emt 0:00:06]} 33. Re5 {[%emt 0:01:39]} Rg8+ {[%emt 0:00:05]} 34. Kf3 {[%emt 0:00:34]} Bf6 {[%emt 0:00:36]} 35. Rxh5 {[%emt 0:00:00]} 1-0

[Event "Eurasia Open Cup 2019"]
[Site "Ekaterinburg"]
[Date "2019.08.06"]
[Round "6.29"]
[White "Klukin, Kirill"]
[Black "Tyurin, Ilya"]
[Result "0-1"]
[ECO "D12"]
[WhiteElo "2325"]
[BlackElo "2168"]
[Annotator "NA"]
[PlyCount "62"]
[EventDate "2019.07.31"]
[EventType "swiss"]
[EventCountry "RUS"]
[SourceTitle "playchess.com"]
[Source "ChessBase"]
[SourceQuality "1"]
[TimeControl "5400+30"]

1. Nf3 {[%emt 0:00:00]} d5 {[%emt 0:00:00]} 2. d4 {[%emt 0:00:00]} Nf6 {[%emt 0:00:00]} 3. c4 {[%emt 0:00:00]} c6 {[%emt 0:00:00]} 4. e3 {[%emt 0:00:00]} Bf5 {[%emt 0:00:00]} 5. Nc3 {[%emt 0:00:19]} e6 {[%emt 0:00:00]} 6. Nh4 {[%emt 0:02:38]} Be4 {[%emt 0:00:00]} 7. f3 {[%emt 0:06:46]} Bg6 {[%emt 0:00:00]} 8. Qb3 {[%emt 0:00:51]} Qc7 {[%emt 0:00:00]} 9. Bd2 {[%emt 0:01:11]} Be7 {[%emt 0:00:02]} 10. Rc1 {[%emt 0:05:00]} Nbd7 {[%emt 0:17:27]} 11. g3 {[%emt 0:04:31]} dxc4 {[%emt 0:05:22]} 12. Bxc4 {[%emt 0:00:42]} a6 {[%emt 0:01:01]} 13. Kf2 {[%emt 0:06:53]} b5 {[%emt 0:02:46]} 14. Be2 {[%emt 0:01:19]} O-O {[%emt 0:04:34]} 15. Nxg6 {[%emt 0:00:53]} hxg6 {[%emt 0:03:11]} 16. Kg2 {[%emt 0:03:25]} c5 {[%emt 0:05:01]} 17. dxc5 {[%emt 0:00:33]} Bxc5 {[%emt 0:01:04]} 18. g4 {[%emt 0:09:06]} Qa7 {[%emt 0:05:40]} 19. g5 {[%emt 0:02:47]} Nd5 {[%emt 0:02:10]} 20. e4 {[%emt 0:21:08]} Nxc3 {[%emt 0:18:47]} 21. Rxc3 {[%emt 0:03:24]} Bd4 {[%emt 0:00:56]} 22. Rc2 {[%emt 0:01:05]} Nc5 {[%emt 0:01:23]} 23. Qa3 {[%emt 0:03:25]} e5 {[%emt 0:11:04]} 24. Rhc1 {[%emt 0:12:46]} Ne6 {[%emt 0:00:33]} 25. Rc6 {[%emt 0:00:47]} Rfd8 {[%emt 0:07:18]} 26. b4 {[%emt 0:09:20]} Bg1 {[%emt 0:02:55]} 27. Be1 {[%emt 0:01:16]} Be3 {[%emt 0:03:33]} 28. Rd1 {[%emt 0:01:41]} Nf4+ {[%emt 0:00:51]} 29. Kh1 {[%emt 0:00:46]} Nxe2 {[%emt 0:01:51]} 30. Rxa6 {[%emt 0:00:23]} Rxd1 {[%emt 0:00:29]} 31. Rxa7 {[%emt 0:00:06]} Rxe1+ {[%emt 0:00:04]} 0-1

[Event "Eurasia Open Cup 2019"]
[Site "Ekaterinburg"]
[Date "2019.08.06"]
[Round "6.30"]
[White "Inozemtsev, Sergei"]
[Black "Voinikonis, Nikita"]
[Result "1/2-1/2"]
[ECO "B51"]
[WhiteElo "2295"]
[BlackElo "2137"]
[Annotator "NA"]
[PlyCount "96"]
[EventDate "2019.07.31"]
[EventType "swiss"]
[EventCountry "RUS"]
[SourceTitle "playchess.com"]
[Source "ChessBase"]
[SourceQuality "1"]
[TimeControl "5400+30"]

1. e4 {[%emt 0:00:00]} c5 {[%emt 0:00:00]} 2. Nf3 {[%emt 0:00:00]} d6 {[%emt 0:00:00]} 3. Bb5+ {[%emt 0:00:00]} Nd7 {[%emt 0:00:00]} 4. d4 {[%emt 0:00:33]} cxd4 {[%emt 0:00:00]} 5. Qxd4 {[%emt 0:00:00]} a6 {[%emt 0:00:00]} 6. Bxd7+ {[%emt 0:00:10]} Bxd7 {[%emt 0:00:00]} 7. c4 {[%emt 0:00:32]} b5 {[%emt 0:02:22]} 8. Nc3 {[%emt 0:00:59]} e5 {[%emt 0:05:26]} 9. Qd3 {[%emt 0:00:11]} bxc4 {[%emt 0:07:29]} 10. Qxc4 {[%emt 0:00:00]} Be6 {[%emt 0:01:26]} 11. Qd3 {[%emt 0:00:00]} Be7 {[%emt 0:02:35]} 12. O-O {[%emt 0:01:10]} Nf6 {[%emt 0:02:14]} 13. Rd1 {[%emt 0:01:46]} O-O {[%emt 0:03:03]} 14. Ne1 {[%emt 0:01:02]} Qc8 {[%emt 0:12:15]} 15. Nc2 {[%emt 0:04:16]} d5 {[%emt 0:02:23]} 16. exd5 {[%emt 0:12:54]} Nxd5 {[%emt 0:00:53]} 17. Bd2 {[%emt 0:02:21]} Rd8 {[%emt 0:17:15]} 18. Qe2 {[%emt 0:09:15]} Nxc3 {[%emt 0:04:05]} 19. Bxc3 {[%emt 0:00:22]} Rxd1+ {[%emt 0:00:25]} 20. Qxd1 {[%emt 0:00:30]} f6 {[%emt 0:01:52]} 21. Ne3 {[%emt 0:01:17]} Qc6 {[%emt 0:00:27]} 22. Rc1 {[%emt 0:01:35]} Rd8 {[%emt 0:03:10]} 23. Qe1 {[%emt 0:02:51]} Qb5 {[%emt 0:01:01]} 24. a3 {[%emt 0:00:24]} Bb3 {[%emt 0:02:41]} 25. h3 {[%emt 0:08:07]} Bc5 {[%emt 0:05:12]} 26. Bb4 {[%emt 0:04:36]} Bd4 {[%emt 0:03:04]} 27. Qd2 {[%emt 0:00:25]} Qd7 {[%emt 0:02:04]} 28. Qd3 {[%emt 0:01:13]} Bf7 {[%emt 0:00:39]} 29. Bc3 {[%emt 0:01:46]} Qb5 {[%emt 0:02:15]} 30. Qd2 {[%emt 0:00:36]} Bb6 {[%emt 0:00:26]} 31. Qe1 {[%emt 0:01:45]} Bb3 {[%emt 0:01:05]} 32. Bd2 {[%emt 0:06:17]} a5 {[%emt 0:00:55]} 33. Nf1 {[%emt 0:08:18]} a4 {[%emt 0:03:22]} 34. Bb4 {[%emt 0:02:45]} h6 {[%emt 0:04:21]} 35. Qe4 {[%emt 0:02:31]} Bd5 {[%emt 0:00:53]} 36. Qg4 {[%emt 0:01:06]} Qd7 {[%emt 0:01:36]} 37. Qg3 {[%emt 0:01:14]} Bb7 {[%emt 0:02:24]} 38. Ne3 {[%emt 0:01:07]} Qe6 {[%emt 0:00:26]} 39. Qg6 {[%emt 0:01:04]} Qf7 {[%emt 0:01:29]} 40. Qg4 {[%emt 0:00:23]} Bxe3 {[%emt 0:04:33]} 41. fxe3 {[%emt 0:00:38]} f5 {[%emt 0:00:40]} 42. Qe2 {[%emt 0:01:53]} Qg6 {[%emt 0:03:20]} 43. Qf2 {[%emt 0:05:38]} Rd3 {[%emt 0:00:38]} 44. Rc3 {[%emt 0:04:25]} Rd1+ {[%emt 0:00:31]} 45. Kh2 {[%emt 0:00:35]} Kh7 {[%emt 0:00:09]} 46. Rc7 {[%emt 0:00:00]} Bd5 {[%emt 0:01:19]} 47. Rd7 {[%emt 0:06:21]} Bb3 {[%emt 0:00:00]} 48. Bc3 {[%emt 0:00:44]} f4 {[%emt 0:00:20]} 1/2-1/2

[Event "Eurasia Open Cup 2019"]
[Site "Ekaterinburg"]
[Date "2019.08.06"]
[Round "6.31"]
[White "Skvortsov, Andrei"]
[Black "Karpeshov, Oleg"]
[Result "0-1"]
[ECO "B12"]
[WhiteElo "2186"]
[BlackElo "2286"]
[Annotator "NA"]
[PlyCount "126"]
[EventDate "2019.07.31"]
[EventType "swiss"]
[EventCountry "RUS"]
[SourceTitle "playchess.com"]
[Source "ChessBase"]
[SourceQuality "1"]
[TimeControl "5400+30"]

1. e4 {[%emt 0:03:21]} c6 {[%emt 0:00:00]} 2. d4 {[%emt 0:00:15]} d5 {[%emt 0:00:00]} 3. e5 {[%emt 0:01:47]} Bf5 {[%emt 0:00:00]} 4. h4 {[%emt 0:00:11]} h5 {[%emt 0:00:00]} 5. Bg5 {[%emt 0:00:44]} Qb6 {[%emt 0:00:31]} 6. Bd3 {[%emt 0:00:00]} Bxd3 {[%emt 0:00:35]} 7. Qxd3 {[%emt 0:00:00]} e6 {[%emt 0:00:40]} 8. Nd2 {[%emt 0:00:26]} Qa6 {[%emt 0:03:30]} 9. Qxa6 {[%emt 0:00:00]} Nxa6 {[%emt 0:00:00]} 10. c3 {[%emt 0:05:22]} c5 {[%emt 0:01:35]} 11. Ngf3 {[%emt 0:00:39]} f6 {[%emt 0:01:31]} 12. Be3 {[%emt 0:00:03]} Nh6 {[%emt 0:00:37]} 13. Ke2 {[%emt 0:00:56]} Nf5 {[%emt 0:00:57]} 14. Ne1 {[%emt 0:02:38]} Be7 {[%emt 0:02:38]} 15. Nd3 {[%emt 0:01:14]} Rc8 {[%emt 0:01:44]} 16. Nf3 {[%emt 0:00:51]} Kf7 {[%emt 0:00:32]} 17. Rac1 {[%emt 0:01:13]} b5 {[%emt 0:05:18]} 18. a3 {[%emt 0:03:19]} Rc7 {[%emt 0:00:52]} 19. b4 {[%emt 0:00:00]} cxd4 {[%emt 0:01:02]} 20. cxd4 {[%emt 0:00:00]} Rc4 {[%emt 0:00:39]} 21. Nb2 {[%emt 0:01:37]} Rcc8 {[%emt 0:00:25]} 22. g3 {[%emt 0:00:00]} Nb8 {[%emt 0:00:47]} 23. Nd3 {[%emt 0:00:20]} Nc6 {[%emt 0:04:06]} 24. exf6 {[%emt 0:00:51]} gxf6 {[%emt 0:01:59]} 25. Rxc6 {[%emt 0:00:05]} Rxc6 {[%emt 0:00:32]} 26. Nfe5+ {[%emt 0:00:03]} fxe5 {[%emt 0:00:43]} 27. Nxe5+ {[%emt 0:00:02]} Kg7 {[%emt 0:00:21]} 28. Nxc6 {[%emt 0:00:28]} a6 {[%emt 0:00:19]} 29. Rc1 {[%emt 0:10:22]} Rc8 {[%emt 0:05:26]} 30. Kd3 {[%emt 0:04:27]} Bd6 {[%emt 0:11:26]} 31. Bg5 {[%emt 0:02:42]} Rc7 {[%emt 0:03:44]} 32. Rc3 {[%emt 0:01:49]} Kg6 {[%emt 0:02:16]} 33. Bd8 {[%emt 0:03:28]} Rf7 {[%emt 0:07:42]} 34. Bg5 {[%emt 0:08:36]} Rc7 {[%emt 0:01:42]} 35. Rc2 {[%emt 0:00:37]} Ng7 {[%emt 0:00:32]} 36. Nd8 {[%emt 0:09:47]} Rxc2 {[%emt 0:08:30]} 37. Kxc2 {[%emt 0:00:05]} Bc7 {[%emt 0:00:49]} 38. Nb7 {[%emt 0:00:11]} Bb6 {[%emt 0:07:48]} 39. Kd3 {[%emt 0:01:38]} e5 {[%emt 0:03:07]} 40. Nc5 {[%emt 0:02:13]} e4+ {[%emt 0:00:33]} 41. Kc3 {[%emt 0:00:36]} Nf5 {[%emt 0:02:44]} 42. Nb3 {[%emt 0:02:01]} Nd6 {[%emt 0:05:00]} 43. Bf4 {[%emt 0:00:45]} Nc4 {[%emt 0:00:19]} 44. Nc5 {[%emt 0:01:12]} a5 {[%emt 0:00:18]} 45. Nd7 {[%emt 0:00:34]} a4 {[%emt 0:00:40]} 46. Ne5+ {[%emt 0:01:06]} Nxe5 {[%emt 0:00:23]} 47. Bxe5 {[%emt 0:00:03]} Kf5 {[%emt 0:00:35]} 48. Kd2 {[%emt 0:00:05]} Bd8 {[%emt 0:01:22]} 49. Bd6 {[%emt 0:00:04]} Bf6 {[%emt 0:03:21]} 50. Ke3 {[%emt 0:00:23]} Kg4 {[%emt 0:00:18]} 51. Bf4 {[%emt 0:00:15]} Bg7 {[%emt 0:01:11]} 52. Bg5 {[%emt 0:00:06]} Bf8 {[%emt 0:00:18]} 53. Ke2 {[%emt 0:00:33]} Bd6 {[%emt 0:00:29]} 54. Bd2 {[%emt 0:00:00]} Be7 {[%emt 0:00:00]} 55. Bf4 {[%emt 0:00:00]} Bxh4 {[%emt 0:00:23]} 56. Bd2 {[%emt 0:04:18]} Bf6 {[%emt 0:01:05]} 57. Be3 {[%emt 0:00:03]} Bg7 {[%emt 0:00:00]} 58. Ke1 {[%emt 0:01:39]} Kf3 {[%emt 0:01:19]} 59. Kf1 {[%emt 0:00:03]} Bf8 {[%emt 0:00:40]} 60. Bd2 {[%emt 0:02:04]} Bd6 {[%emt 0:00:00]} 61. Bg5 {[%emt 0:00:21]} e3 {[%emt 0:03:13]} 62. Bxe3 {[%emt 0:00:47]} Bxg3 {[%emt 0:00:32]} 63. Ke1 {[%emt 0:00:53]} Bf4 {[%emt 0:00:28]} 0-1

[Event "Eurasia Open Cup 2019"]
[Site "Ekaterinburg"]
[Date "2019.08.06"]
[Round "6.32"]
[White "Pogorelskikh, Sergey"]
[Black "Zhukov, Ivan"]
[Result "1/2-1/2"]
[ECO "C42"]
[WhiteElo "2284"]
[BlackElo "2136"]
[Annotator "NA"]
[PlyCount "117"]
[EventDate "2019.07.31"]
[EventType "swiss"]
[EventCountry "RUS"]
[SourceTitle "playchess.com"]
[Source "ChessBase"]
[SourceQuality "1"]
[TimeControl "5400+30"]

1. e4 {[%emt 0:00:00]} e5 {[%emt 0:00:00]} 2. Nf3 {[%emt 0:00:00]} Nf6 {[%emt 0:00:00]} 3. Nxe5 {[%emt 0:00:00]} d6 {[%emt 0:00:00]} 4. Nf3 {[%emt 0:00:00]} Nxe4 {[%emt 0:00:10]} 5. Nc3 {[%emt 0:00:00]} Nxc3 {[%emt 0:00:07]} 6. dxc3 {[%emt 0:00:07]} Be7 {[%emt 0:00:42]} 7. Be3 {[%emt 0:00:00]} Nc6 {[%emt 0:01:22]} 8. Qd2 {[%emt 0:00:00]} Be6 {[%emt 0:02:57]} 9. O-O-O {[%emt 0:00:12]} Qd7 {[%emt 0:00:21]} 10. Kb1 {[%emt 0:00:18]} Bf6 {[%emt 0:08:48]} 11. h4 {[%emt 0:04:46]} h6 {[%emt 0:01:00]} 12. Be2 {[%emt 0:03:20]} O-O-O {[%emt 0:00:10]} 13. Nd4 {[%emt 0:01:18]} Bxd4 {[%emt 0:05:24]} 14. cxd4 {[%emt 0:03:48]} d5 {[%emt 0:05:11]} 15. Bb5 {[%emt 0:01:17]} a6 {[%emt 0:03:41]} 16. Ba4 {[%emt 0:00:00]} b5 {[%emt 0:03:40]} 17. Bb3 {[%emt 0:00:26]} Kb7 {[%emt 0:01:12]} 18. h5 {[%emt 0:01:12]} Ne7 {[%emt 0:06:35]} 19. f3 {[%emt 0:08:53]} Nf5 {[%emt 0:03:40]} 20. Bf4 {[%emt 0:00:00]} Nd6 {[%emt 0:01:21]} 21. Bxd6 {[%emt 0:04:24]} Qxd6 {[%emt 0:00:00]} 22. Rde1 {[%emt 0:06:25]} Rhe8 {[%emt 0:04:10]} 23. g4 {[%emt 0:01:44]} f6 {[%emt 0:00:41]} 24. c3 {[%emt 0:00:00]} Bf7 {[%emt 0:01:26]} 25. Bc2 {[%emt 0:00:13]} Rd7 {[%emt 0:00:48]} 26. Rxe8 {[%emt 0:01:19]} Bxe8 {[%emt 0:00:01]} 27. a4 {[%emt 0:00:04]} Re7 {[%emt 0:00:55]} 28. axb5 {[%emt 0:00:09]} axb5 {[%emt 0:03:44]} 29. Re1 {[%emt 0:01:08]} Bd7 {[%emt 0:01:07]} 30. Bd3 {[%emt 0:01:23]} Kb6 {[%emt 0:01:24]} 31. Kc2 {[%emt 0:01:14]} Rxe1 {[%emt 0:02:50]} 32. Qxe1 {[%emt 0:02:46]} Kb7 {[%emt 0:08:45]} 33. Qe2 {[%emt 0:08:56]} Kb6 {[%emt 0:00:11]} 34. Qf1 {[%emt 0:03:28]} Qf4 {[%emt 0:01:16]} 35. Qe2 {[%emt 0:01:05]} Qd6 {[%emt 0:00:00]} 36. Kb3 {[%emt 0:01:19]} c6 {[%emt 0:03:57]} 37. Bg6 {[%emt 0:03:11]} Kb7 {[%emt 0:08:50]} 38. Qe1 {[%emt 0:01:24]} Qe6 {[%emt 0:06:35]} 39. Qf2 {[%emt 0:08:13]} Qe7 {[%emt 0:00:21]} 40. Bd3 {[%emt 0:00:26]} Kb6 {[%emt 0:00:36]} 41. Kc2 {[%emt 0:00:47]} Kb7 {[%emt 0:01:02]} 42. Qh2 {[%emt 0:03:01]} Bc8 {[%emt 0:01:20]} 43. Kd2 {[%emt 0:02:22]} Bd7 {[%emt 0:02:44]} 44. Qg3 {[%emt 0:05:25]} Bc8 {[%emt 0:00:43]} 45. Qg1 {[%emt 0:01:33]} Bd7 {[%emt 0:00:57]} 46. Bf5 {[%emt 0:00:36]} Bxf5 {[%emt 0:02:38]} 47. gxf5 {[%emt 0:00:06]} Qc7 {[%emt 0:00:59]} 48. Kc2 {[%emt 0:01:02]} Kb6 {[%emt 0:00:00]} 49. Kb1 {[%emt 0:01:57]} Qf4 {[%emt 0:02:58]} 50. Qxg7 {[%emt 0:01:35]} Qxf3 {[%emt 0:01:52]} 51. Qxh6 {[%emt 0:01:23]} Qd1+ {[%emt 0:01:20]} 52. Qc1 {[%emt 0:00:18]} Qxh5 {[%emt 0:00:03]} 53. Qf1 {[%emt 0:00:52]} Qg4 {[%emt 0:00:44]} 54. Ka2 {[%emt 0:00:17]} Qe4 {[%emt 0:01:44]} 55. Kb3 {[%emt 0:01:06]} Qg4 {[%emt 0:00:23]} 56. Kb4 {[%emt 0:00:24]} Qe4 {[%emt 0:00:00]} 57. Qf2 {[%emt 0:09:33]} Qd3 {[%emt 0:00:19]} 58. Kb3 {[%emt 0:04:31]} Qd1+ {[%emt 0:00:05]} 59. Ka2 {[%emt 0:00:19]} 1/2-1/2

[Event "Eurasia Open Cup 2019"]
[Site "Ekaterinburg"]
[Date "2019.08.06"]
[Round "6.33"]
[White "Novikov, Evgenij"]
[Black "Tsybikov, Tumen"]
[Result "1-0"]
[ECO "B23"]
[WhiteElo "2164"]
[BlackElo "2281"]
[Annotator "NA"]
[PlyCount "49"]
[EventDate "2019.07.31"]
[EventType "swiss"]
[EventCountry "RUS"]
[SourceTitle "playchess.com"]
[Source "ChessBase"]
[SourceQuality "1"]
[TimeControl "5400+30"]

1. e4 {[%emt 0:00:00]} c5 {[%emt 0:06:19]} 2. Nc3 {[%emt 0:00:00]} d6 {[%emt 0:00:10]} 3. d4 {[%emt 0:00:37]} cxd4 {[%emt 0:02:35]} 4. Qxd4 {[%emt 0:00:06]} Nf6 {[%emt 0:00:00]} 5. b3 {[%emt 0:02:09]} e5 {[%emt 0:15:16]} 6. Qd2 {[%emt 0:04:59]} Be6 {[%emt 0:02:57]} 7. Bb2 {[%emt 0:02:00]} Be7 {[%emt 0:00:47]} 8. O-O-O {[%emt 0:03:30]} O-O {[%emt 0:00:46]} 9. Kb1 {[%emt 0:01:10]} Nbd7 {[%emt 0:02:17]} 10. f3 {[%emt 0:11:04]} a6 {[%emt 0:00:38]} 11. g4 {[%emt 0:06:11]} b5 {[%emt 0:01:03]} 12. a3 {[%emt 0:07:54]} Nb6 {[%emt 0:05:23]} 13. Nge2 {[%emt 0:05:54]} Rc8 {[%emt 0:22:32]} 14. Ng3 {[%emt 0:02:34]} Rc5 {[%emt 0:03:29]} 15. Nf5 {[%emt 0:12:03]} Bxf5 {[%emt 0:05:28]} 16. gxf5 {[%emt 0:00:36]} Qc7 {[%emt 0:04:01]} 17. Bd3 {[%emt 0:06:58]} Rc8 {[%emt 0:01:16]} 18. Na2 {[%emt 0:01:05]} Nh5 {[%emt 0:03:00]} 19. Rhg1 {[%emt 0:00:28]} Bf6 {[%emt 0:01:06]} 20. Qh6 {[%emt 0:02:28]} Nc4 {[%emt 0:03:45]} 21. Bxc4 {[%emt 0:02:36]} bxc4 {[%emt 0:00:06]} 22. b4 {[%emt 0:00:26]} c3 {[%emt 0:00:05]} 23. Bc1 {[%emt 0:00:25]} a5 {[%emt 0:00:05]} 24. bxc5 {[%emt 0:02:18]} Qxc5 {[%emt 0:01:43]} 25. Qe3 {[%emt 0:00:36]} 1-0

[Event "Eurasia Open Cup 2019"]
[Site "Ekaterinburg"]
[Date "2019.08.06"]
[Round "6.34"]
[White "Isanzhulov, Arystan"]
[Black "Lisimenko, Ruslan"]
[Result "1-0"]
[ECO "B94"]
[WhiteElo "2278"]
[BlackElo "2112"]
[Annotator "NA"]
[PlyCount "87"]
[EventDate "2019.07.31"]
[EventType "swiss"]
[EventCountry "RUS"]
[SourceTitle "playchess.com"]
[Source "ChessBase"]
[SourceQuality "1"]
[TimeControl "5400+30"]

1. e4 {[%emt 0:00:00]} c5 {[%emt 0:00:00]} 2. Nf3 {[%emt 0:00:00]} d6 {[%emt 0:00:00]} 3. d4 {[%emt 0:00:00]} cxd4 {[%emt 0:00:00]} 4. Nxd4 {[%emt 0:00:00]} Nf6 {[%emt 0:00:00]} 5. Nc3 {[%emt 0:00:00]} a6 {[%emt 0:00:12]} 6. Bg5 {[%emt 0:00:00]} Nbd7 {[%emt 0:00:29]} 7. f4 {[%emt 0:00:18]} Qc7 {[%emt 0:00:54]} 8. Qf3 {[%emt 0:00:22]} g6 {[%emt 0:00:24]} 9. O-O-O {[%emt 0:00:13]} Bg7 {[%emt 0:00:34]} 10. Kb1 {[%emt 0:00:13]} O-O {[%emt 0:02:31]} 11. h4 {[%emt 0:02:53]} h5 {[%emt 0:07:37]} 12. f5 {[%emt 0:05:56]} Ne5 {[%emt 0:02:46]} 13. Qf4 {[%emt 0:10:41]} e6 {[%emt 0:04:05]} 14. Bh6 {[%emt 0:31:25]} Bd7 {[%emt 0:06:44]} 15. Bxg7 {[%emt 0:03:42]} Kxg7 {[%emt 0:00:00]} 16. Nf3 {[%emt 0:10:02]} b5 {[%emt 0:15:49]} 17. Qd2 {[%emt 0:17:18]} b4 {[%emt 0:11:48]} 18. Qxd6 {[%emt 0:00:33]} Qxd6 {[%emt 0:00:09]} 19. Rxd6 {[%emt 0:00:00]} Nxf3 {[%emt 0:01:50]} 20. gxf3 {[%emt 0:00:00]} bxc3 {[%emt 0:02:07]} 21. e5 {[%emt 0:00:00]} Nd5 {[%emt 0:03:24]} 22. f6+ {[%emt 0:00:36]} Kg8 {[%emt 0:00:34]} 23. Rxd7 {[%emt 0:00:00]} cxb2 {[%emt 0:06:18]} 24. Rb7 {[%emt 0:06:15]} Rfb8 {[%emt 0:08:22]} 25. Rxb2 {[%emt 0:01:17]} Rxb2+ {[%emt 0:00:35]} 26. Kxb2 {[%emt 0:00:00]} Rb8+ {[%emt 0:00:53]} 27. Kc1 {[%emt 0:04:21]} a5 {[%emt 0:03:56]} 28. Bd3 {[%emt 0:02:54]} Nb4 {[%emt 0:09:07]} 29. Kd2 {[%emt 0:00:01]} Nc6 {[%emt 0:01:54]} 30. f4 {[%emt 0:01:07]} Rb4 {[%emt 0:01:39]} 31. Rf1 {[%emt 0:00:30]} Nb8 {[%emt 0:02:35]} 32. Kc3 {[%emt 0:01:11]} Ra4 {[%emt 0:01:14]} 33. Bb5 {[%emt 0:01:22]} Rb4 {[%emt 0:01:59]} 34. a4 {[%emt 0:00:00]} Kh7 {[%emt 0:00:27]} 35. Kd3 {[%emt 0:00:11]} Rb2 {[%emt 0:00:30]} 36. Rd1 {[%emt 0:00:29]} Ra2 {[%emt 0:00:32]} 37. c3 {[%emt 0:01:15]} Rh2 {[%emt 0:00:57]} 38. Ke4 {[%emt 0:00:49]} Rxh4 {[%emt 0:00:00]} 39. Rd8 {[%emt 0:00:08]} g5 {[%emt 0:00:24]} 40. Rxb8 {[%emt 0:00:23]} Rxf4+ {[%emt 0:00:00]} 41. Ke3 {[%emt 0:00:02]} Rf5 {[%emt 0:01:52]} 42. Bd3 {[%emt 0:00:35]} h4 {[%emt 0:00:16]} 43. Bxf5+ {[%emt 0:00:00]} exf5 {[%emt 0:00:03]} 44. e6 {[%emt 0:00:00]} 1-0